[Event "November 21 Early 2023"]
[Site "https://www.chess.com"]
[Date "2023.11.21"]
[Round "2"]
[White "Viskelis, Darius"]
[Black "Novik, Maxim"]
[Result "0-1"]
[Board "181"]
[TimeControl "180+1"]
[WhiteFideId "12800830"]
[BlackFideId "4102924"]
[WhiteElo "1859"]
[BlackElo "2306"]
[WhiteTeam "LTU"]
[BlackTeam "LTU"]
[WhiteClock "0:00:00"]
[BlackClock "0:01:06"]

1. e4 {[%clk 0:03:00]}  c6 {[%clk 0:02:59]} 2. d4 {[%clk 0:02:56]}  d5 {[%clk 0:03:00]} 3. exd5 {[%clk 0:02:57]}  cxd5 {[%clk 0:03:00]} 4. c4 {[%clk 0:02:57]}  Nf6 {[%clk 0:03:00]} 5. Nc3 {[%clk 0:02:58]}  g6 {[%clk 0:03:00]} 6. cxd5 {[%clk 0:02:57]}  Nxd5 {[%clk 0:03:00]} 7. Qb3 {[%clk 0:02:52]}  Nxc3 {[%clk 0:03:00]} 8. bxc3 {[%clk 0:02:50]}  Bg7 {[%clk 0:03:00]} 9. Nf3 {[%clk 0:02:41]}  O-O {[%clk 0:02:59]} 10. Be3 {[%clk 0:02:39]}  Nc6 {[%clk 0:02:59]} 11. Be2 {[%clk 0:02:33]}  Be6 {[%clk 0:02:59]} 12. Qxb7 {[%clk 0:02:21]}  Bd5 {[%clk 0:02:57]} 13. Qb5 {[%clk 0:02:14]}  Rb8 {[%clk 0:02:54]} 14. Qd3 {[%clk 0:02:14]}  e5 {[%clk 0:02:46]} 15. dxe5 {[%clk 0:02:04]}  Bxf3 {[%clk 0:02:14]} 16. Qxd8 {[%clk 0:02:01]}  Rfxd8 {[%clk 0:02:13]} 17. Bxf3 {[%clk 0:01:51]}  Nxe5 {[%clk 0:02:10]} 18. O-O {[%clk 0:01:46]}  Nxf3+ {[%clk 0:02:10]} 19. gxf3 {[%clk 0:01:47]}  Bxc3 {[%clk 0:02:07]} 20. Rab1 {[%clk 0:01:33]}  a5 {[%clk 0:01:59]} 21. Rfc1 {[%clk 0:01:21]}  Rxb1 {[%clk 0:01:57]} 22. Rxb1 {[%clk 0:01:20]}  Bb4 {[%clk 0:01:50]} 23. Kf1 {[%clk 0:01:18]}  Rd3 {[%clk 0:01:46]} 24. Ke2 {[%clk 0:01:16]}  Ra3 {[%clk 0:01:45]} 25. Rb2 {[%clk 0:01:16]}  f5 {[%clk 0:01:45]} 26. Rc2 {[%clk 0:01:08]}  Kf7 {[%clk 0:01:44]} 27. f4 {[%clk 0:01:00]}  Ke6 {[%clk 0:01:41]} 28. Kf3 {[%clk 0:00:48]}  Rc3 {[%clk 0:01:29]} 29. Rb2 {[%clk 0:00:34]}  Kd5 {[%clk 0:01:29]} 30. Rd2+ {[%clk 0:00:27]}  Kc6 {[%clk 0:01:29]} 31. Rb2 {[%clk 0:00:20]}  Kb5 {[%clk 0:01:25]} 32. Ke2 {[%clk 0:00:19]}  Ka4 {[%clk 0:01:20]} 33. Bd2 {[%clk 0:00:15]}  Rc4 {[%clk 0:01:14]} 34. Bxb4 {[%clk 0:00:14]}  Rxb4 {[%clk 0:01:12]} 35. Rd2 {[%clk 0:00:08]}  Rxf4 {[%clk 0:01:11]} 36. Kf1 {[%clk 0:00:05]}  Ka3 {[%clk 0:01:10]} 37. Kg2 {[%clk 0:00:04]}  a4 {[%clk 0:01:09]} 38. f3 {[%clk 0:00:02]}  Rb4 {[%clk 0:01:08]} 39. Kg3 {[%clk 0:00:00]}  g5 {[%clk 0:01:06]} 0-1

[Event "November 21 Early 2023"]
[Site "https://www.chess.com"]
[Date "2023.11.21"]
[Round "2"]
[White "Erzhanov, Arman"]
[Black "crosky"]
[Result "1-0"]
[Board "182"]
[TimeControl "180+1"]
[WhiteFideId "4138821"]
[WhiteElo "2171"]
[BlackElo "2331"]
[WhiteTeam "KAZ"]
[WhiteClock "0:00:14"]
[BlackClock "0:00:00"]

1. e4 {[%clk 0:03:00]}  Nc6 {[%clk 0:02:59]} 2. Nf3 {[%clk 0:02:59]}  d6 {[%clk 0:03:00]} 3. d4 {[%clk 0:02:59]}  g6 {[%clk 0:03:00]} 4. Be3 {[%clk 0:02:56]}  Bg7 {[%clk 0:03:00]} 5. c3 {[%clk 0:02:56]}  Nf6 {[%clk 0:03:00]} 6. Bd3 {[%clk 0:02:56]}  O-O {[%clk 0:03:00]} 7. O-O {[%clk 0:02:55]}  e5 {[%clk 0:03:00]} 8. d5 {[%clk 0:02:55]}  Ne7 {[%clk 0:03:00]} 9. c4 {[%clk 0:02:55]}  Nd7 {[%clk 0:03:00]} 10. Nfd2 {[%clk 0:02:55]}  f5 {[%clk 0:02:58]} 11. f3 {[%clk 0:02:55]}  f4 {[%clk 0:02:57]} 12. Bf2 {[%clk 0:02:54]}  g5 {[%clk 0:02:57]} 13. Nc3 {[%clk 0:02:55]}  Nf6 {[%clk 0:02:54]} 14. b4 {[%clk 0:02:52]}  g4 {[%clk 0:02:51]} 15. c5 {[%clk 0:02:51]}  Rf7 {[%clk 0:02:44]} 16. cxd6 {[%clk 0:02:50]}  cxd6 {[%clk 0:02:45]} 17. Rc1 {[%clk 0:02:48]}  Bf8 {[%clk 0:02:44]} 18. Nb5 {[%clk 0:02:45]}  gxf3 {[%clk 0:02:31]} 19. Nxf3 {[%clk 0:02:38]}  Rg7 {[%clk 0:02:31]} 20. Kh1 {[%clk 0:02:31]}  Ng6 {[%clk 0:02:02]} 21. Qc2 {[%clk 0:01:44]}  Ng4 {[%clk 0:02:01]} 22. Bg1 {[%clk 0:01:44]}  Nh4 {[%clk 0:01:59]} 23. Nc7 {[%clk 0:01:35]}  Nxg2 {[%clk 0:01:40]} 24. Nxa8 {[%clk 0:01:05]}  Bd7 {[%clk 0:01:07]} 25. Qxg2 {[%clk 0:01:03]}  Ne3 {[%clk 0:01:07]} 26. Qf2 {[%clk 0:00:57]}  Nxf1 {[%clk 0:01:03]} 27. Rxf1 {[%clk 0:00:53]}  Bh3 {[%clk 0:00:54]} 28. Ne1 {[%clk 0:00:47]}  Bxf1 {[%clk 0:00:51]} 29. Bxf1 {[%clk 0:00:48]}  Qxa8 {[%clk 0:00:51]} 30. Bh3 {[%clk 0:00:43]}  b6 {[%clk 0:00:43]} 31. Be6+ {[%clk 0:00:43]}  Kh8 {[%clk 0:00:43]} 32. Nf3 {[%clk 0:00:41]}  Be7 {[%clk 0:00:33]} 33. Qf1 {[%clk 0:00:32]}  Qe8 {[%clk 0:00:23]} 34. Qh3 {[%clk 0:00:32]}  Qg6 {[%clk 0:00:22]} 35. Bf2 {[%clk 0:00:32]}  h6 {[%clk 0:00:15]} 36. Bf5 {[%clk 0:00:32]}  Qf6 {[%clk 0:00:13]} 37. Bh4 {[%clk 0:00:32]}  Qf8 {[%clk 0:00:11]} 38. Bxe7 {[%clk 0:00:32]}  Rxe7 {[%clk 0:00:12]} 39. Ng5 {[%clk 0:00:31]}  Rc7 {[%clk 0:00:07]} 40. Ne6 {[%clk 0:00:18]}  Rc1+ {[%clk 0:00:08]} 41. Kg2 {[%clk 0:00:17]}  Qf6 {[%clk 0:00:09]} 42. Kf2 {[%clk 0:00:15]}  Rc2+ {[%clk 0:00:09]} 43. Ke1 {[%clk 0:00:15]}  Rxa2 {[%clk 0:00:09]} 44. Qh5 {[%clk 0:00:14]}  Ra1+ {[%clk 0:00:02]} 45. Kd2 {[%clk 0:00:14]}  Ra2+ {[%clk 0:00:00]} 46. Kc1 {[%clk 0:00:14]} 1-0

[Event "November 21 Early 2023"]
[Site "https://www.chess.com"]
[Date "2023.11.21"]
[Round "2"]
[White "Shapiro, Daniel"]
[Black "LeoLV10"]
[Result "0-1"]
[Board "183"]
[TimeControl "180+1"]
[WhiteFideId "2001780"]
[WhiteElo "2331"]
[BlackElo "2516"]
[WhiteTeam "USA"]
[WhiteClock "0:00:00"]
[BlackClock "0:00:18"]

1. d4 {[%clk 0:03:00]}  Nf6 {[%clk 0:03:00]} 2. c4 {[%clk 0:03:00]}  e6 {[%clk 0:02:59]} 3. g3 {[%clk 0:03:00]}  d5 {[%clk 0:02:55]} 4. Nf3 {[%clk 0:02:59]}  a6 {[%clk 0:02:55]} 5. Bg2 {[%clk 0:02:49]}  dxc4 {[%clk 0:02:55]} 6. O-O {[%clk 0:02:49]}  Be7 {[%clk 0:02:47]} 7. a4 {[%clk 0:02:37]}  O-O {[%clk 0:02:47]} 8. Qc2 {[%clk 0:02:35]}  Nc6 {[%clk 0:02:46]} 9. Qxc4 {[%clk 0:02:32]}  Rb8 {[%clk 0:02:42]} 10. Bf4 {[%clk 0:02:27]}  Bd7 {[%clk 0:02:35]} 11. Nbd2 {[%clk 0:02:23]}  Bd6 {[%clk 0:02:28]} 12. Nb3 {[%clk 0:02:07]}  Nd5 {[%clk 0:02:24]} 13. Bg5 {[%clk 0:02:01]}  f6 {[%clk 0:02:19]} 14. Bd2 {[%clk 0:01:57]}  b5 {[%clk 0:02:18]} 15. axb5 {[%clk 0:01:48]}  axb5 {[%clk 0:02:19]} 16. Qc2 {[%clk 0:01:41]}  Ncb4 {[%clk 0:02:07]} 17. Qd1 {[%clk 0:01:36]}  Nb6 {[%clk 0:01:49]} 18. e4 {[%clk 0:01:31]}  Nc4 {[%clk 0:01:48]} 19. Bc3 {[%clk 0:01:30]}  Be7 {[%clk 0:01:40]} 20. Qe2 {[%clk 0:01:18]}  Qe8 {[%clk 0:01:20]} 21. Nfd2 {[%clk 0:01:11]}  Nxd2 {[%clk 0:01:17]} 22. Qxd2 {[%clk 0:01:11]}  Nc6 {[%clk 0:01:14]} 23. d5 {[%clk 0:01:11]}  Ne5 {[%clk 0:01:09]} 24. Bh3 {[%clk 0:00:54]}  Nc4 {[%clk 0:01:02]} 25. Qd1 {[%clk 0:00:45]}  e5 {[%clk 0:01:02]} 26. Bxd7 {[%clk 0:00:32]}  Qxd7 {[%clk 0:01:02]} 27. Kg2 {[%clk 0:00:28]}  b4 {[%clk 0:01:02]} 28. Qe2 {[%clk 0:00:23]}  bxc3 {[%clk 0:00:58]} 29. Qxc4 {[%clk 0:00:21]}  cxb2 {[%clk 0:00:51]} 30. d6+ {[%clk 0:00:19]}  Rf7 {[%clk 0:00:52]} 31. Rab1 {[%clk 0:00:11]}  Bxd6 {[%clk 0:00:51]} 32. Rxb2 {[%clk 0:00:12]}  Rb4 {[%clk 0:00:45]} 33. Qc3 {[%clk 0:00:11]}  Rxe4 {[%clk 0:00:41]} 34. f3 {[%clk 0:00:09]}  Rb4 {[%clk 0:00:36]} 35. Rd1 {[%clk 0:00:09]}  Qb5 {[%clk 0:00:29]} 36. Qd3 {[%clk 0:00:06]}  Qxd3 {[%clk 0:00:27]} 37. Rxd3 {[%clk 0:00:07]}  Rf8 {[%clk 0:00:28]} 38. Rc2 {[%clk 0:00:07]}  Rfb8 {[%clk 0:00:27]} 39. Nd2 {[%clk 0:00:07]}  Rb2 {[%clk 0:00:27]} 40. Rdc3 {[%clk 0:00:07]}  Rxc2 {[%clk 0:00:22]} 41. Rxc2 {[%clk 0:00:08]}  Kf7 {[%clk 0:00:22]} 42. Ne4 {[%clk 0:00:08]}  Ke6 {[%clk 0:00:22]} 43. Kf2 {[%clk 0:00:07]}  Kd7 {[%clk 0:00:19]} 44. Rd2 {[%clk 0:00:06]}  Rb5 {[%clk 0:00:18]} 45. Ke3 {[%clk 0:00:06]}  Ke6 {[%clk 0:00:19]} 46. Rc2 {[%clk 0:00:06]}  Rb3+ {[%clk 0:00:18]} 47. Ke2 {[%clk 0:00:06]}  Rb5 {[%clk 0:00:18]} 48. Ra2 {[%clk 0:00:05]}  h6 {[%clk 0:00:17]} 49. h4 {[%clk 0:00:05]}  f5 {[%clk 0:00:17]} 50. Nc3 {[%clk 0:00:04]}  Rc5 {[%clk 0:00:18]} 51. Kd3 {[%clk 0:00:03]}  Rc6 {[%clk 0:00:18]} 52. Ne2 {[%clk 0:00:03]}  Rb6 {[%clk 0:00:18]} 53. Ra8 {[%clk 0:00:00]}  Rb3+ {[%clk 0:00:18]} 0-1

[Event "November 21 Early 2023"]
[Site "https://www.chess.com"]
[Date "2023.11.21"]
[Round "2"]
[White "Olsson, Linus"]
[Black "Maect19"]
[Result "1-0"]
[Board "184"]
[TimeControl "180+1"]
[WhiteFideId "1706098"]
[WhiteElo "2222"]
[BlackElo "2330"]
[WhiteTeam "SWE"]
[WhiteClock "0:00:31"]
[BlackClock "0:00:04"]

1. d4 {[%clk 0:03:00]}  d5 {[%clk 0:02:59]} 2. c4 {[%clk 0:03:01]}  c6 {[%clk 0:02:59]} 3. Nf3 {[%clk 0:03:02]}  Nf6 {[%clk 0:03:00]} 4. Nc3 {[%clk 0:03:02]}  e6 {[%clk 0:02:59]} 5. Bg5 {[%clk 0:03:01]}  dxc4 {[%clk 0:02:59]} 6. e4 {[%clk 0:03:01]}  b5 {[%clk 0:03:00]} 7. e5 {[%clk 0:03:02]}  h6 {[%clk 0:03:00]} 8. Bh4 {[%clk 0:03:02]}  g5 {[%clk 0:03:01]} 9. Nxg5 {[%clk 0:03:03]}  hxg5 {[%clk 0:03:01]} 10. Bxg5 {[%clk 0:03:03]}  Nbd7 {[%clk 0:03:01]} 11. exf6 {[%clk 0:03:04]}  Bb7 {[%clk 0:03:00]} 12. g3 {[%clk 0:03:04]}  c5 {[%clk 0:03:00]} 13. d5 {[%clk 0:03:04]}  Qc7 {[%clk 0:02:58]} 14. Bg2 {[%clk 0:02:52]}  b4 {[%clk 0:02:57]} 15. d6 {[%clk 0:02:30]}  Qb6 {[%clk 0:02:50]} 16. Bxb7 {[%clk 0:02:25]}  Qxb7 {[%clk 0:02:44]} 17. O-O {[%clk 0:02:24]}  bxc3 {[%clk 0:02:43]} 18. bxc3 {[%clk 0:02:25]}  O-O-O {[%clk 0:02:40]} 19. Rb1 {[%clk 0:02:23]}  Nb6 {[%clk 0:02:40]} 20. Bf4 {[%clk 0:02:16]}  Qc6 {[%clk 0:02:38]} 21. Qg4 {[%clk 0:02:02]}  Bxd6 {[%clk 0:02:33]} 22. Bxd6 {[%clk 0:02:01]}  Rxd6 {[%clk 0:02:29]} 23. a4 {[%clk 0:02:01]}  Nxa4 {[%clk 0:02:22]} 24. Qg7 {[%clk 0:02:00]}  Qe8 {[%clk 0:02:14]} 25. Ra1 {[%clk 0:01:51]}  Rd8 {[%clk 0:01:46]} 26. Qg4 {[%clk 0:01:45]}  Nb6 {[%clk 0:01:38]} 27. Rxa7 {[%clk 0:01:44]}  Qc6 {[%clk 0:01:37]} 28. h4 {[%clk 0:01:33]}  Rdg8 {[%clk 0:01:29]} 29. Qf4 {[%clk 0:01:32]}  Nd5 {[%clk 0:01:27]} 30. Qxc4 {[%clk 0:01:29]}  Ne3 {[%clk 0:01:10]} 31. fxe3 {[%clk 0:01:06]}  Rxg3+ {[%clk 0:00:57]} 32. Kf2 {[%clk 0:01:06]}  Qf3+ {[%clk 0:00:40]} 33. Ke1 {[%clk 0:01:06]}  Qxe3+ {[%clk 0:00:39]} 34. Kd1 {[%clk 0:01:06]}  Rd8+ {[%clk 0:00:32]} 35. Kc2 {[%clk 0:01:05]}  Qd2+ {[%clk 0:00:16]} 36. Kb3 {[%clk 0:01:03]}  Qd5 {[%clk 0:00:16]} 37. Qxd5 {[%clk 0:00:54]}  exd5 {[%clk 0:00:16]} 38. Rxf7 {[%clk 0:00:54]}  d4 {[%clk 0:00:15]} 39. Ra7 {[%clk 0:00:45]}  Rxc3+ {[%clk 0:00:14]} 40. Kb2 {[%clk 0:00:44]}  Kb8 {[%clk 0:00:15]} 41. Re7 {[%clk 0:00:38]}  c4 {[%clk 0:00:15]} 42. f7 {[%clk 0:00:38]}  Rb3+ {[%clk 0:00:15]} 43. Kc1 {[%clk 0:00:34]}  Rc3+ {[%clk 0:00:15]} 44. Kd2 {[%clk 0:00:31]}  Rd3+ {[%clk 0:00:15]} 45. Ke2 {[%clk 0:00:31]}  Re3+ {[%clk 0:00:16]} 46. Rxe3 {[%clk 0:00:30]}  dxe3 {[%clk 0:00:04]} 47. f8=Q {[%clk 0:00:31]} 1-0

[Event "November 21 Early 2023"]
[Site "https://www.chess.com"]
[Date "2023.11.21"]
[Round "2"]
[White "Napoli, Nicolo"]
[Black "Hajiyev, Kanan"]
[Result "0-1"]
[Board "185"]
[TimeControl "180+1"]
[WhiteFideId "813702"]
[BlackFideId "13404148"]
[WhiteElo "2306"]
[BlackElo "2102"]
[WhiteTeam "ITA"]
[BlackTeam "AZE"]
[WhiteClock "0:00:00"]
[BlackClock "0:00:34"]

1. e4 {[%clk 0:03:00]}  c6 {[%clk 0:03:00]} 2. d4 {[%clk 0:02:55]}  d5 {[%clk 0:03:00]} 3. Nc3 {[%clk 0:02:54]}  a6 {[%clk 0:03:01]} 4. Nf3 {[%clk 0:02:39]}  Bg4 {[%clk 0:03:01]} 5. Be2 {[%clk 0:02:38]}  e6 {[%clk 0:03:01]} 6. h3 {[%clk 0:02:34]}  Bh5 {[%clk 0:03:01]} 7. Bf4 {[%clk 0:02:33]}  Nf6 {[%clk 0:03:01]} 8. e5 {[%clk 0:02:31]}  Nfd7 {[%clk 0:03:01]} 9. Bd3 {[%clk 0:02:31]}  c5 {[%clk 0:03:00]} 10. g4 {[%clk 0:02:24]}  Bg6 {[%clk 0:03:01]} 11. Ne2 {[%clk 0:02:25]}  cxd4 {[%clk 0:03:00]} 12. Nexd4 {[%clk 0:02:22]}  Nc6 {[%clk 0:03:01]} 13. c3 {[%clk 0:02:20]}  Bxd3 {[%clk 0:02:57]} 14. Qxd3 {[%clk 0:02:20]}  Qb6 {[%clk 0:02:56]} 15. O-O {[%clk 0:02:13]}  Nc5 {[%clk 0:02:56]} 16. Qe2 {[%clk 0:02:08]}  Be7 {[%clk 0:02:45]} 17. Be3 {[%clk 0:01:52]}  Nxd4 {[%clk 0:02:34]} 18. Bxd4 {[%clk 0:01:37]}  Qc7 {[%clk 0:02:34]} 19. Nd2 {[%clk 0:01:35]}  h5 {[%clk 0:02:32]} 20. Rfe1 {[%clk 0:01:24]}  hxg4 {[%clk 0:02:29]} 21. Qxg4 {[%clk 0:01:25]}  O-O-O {[%clk 0:02:28]} 22. Nb3 {[%clk 0:01:21]}  Nd3 {[%clk 0:02:23]} 23. Re2 {[%clk 0:01:17]}  Rh4 {[%clk 0:02:19]} 24. Qxg7 {[%clk 0:00:54]}  Rdh8 {[%clk 0:02:11]} 25. Rd2 {[%clk 0:00:32]}  Nf4 {[%clk 0:02:00]} 26. Be3 {[%clk 0:00:19]}  R4h7 {[%clk 0:01:49]} 27. Qg3 {[%clk 0:00:16]}  Ng6 {[%clk 0:01:42]} 28. c4 {[%clk 0:00:14]}  Rxh3 {[%clk 0:01:38]} 29. Qg2 {[%clk 0:00:10]}  dxc4 {[%clk 0:01:34]} 30. Rc1 {[%clk 0:00:09]}  Nxe5 {[%clk 0:01:33]} 31. Bf4 {[%clk 0:00:05]}  Qc6 {[%clk 0:00:37]} 32. Nd4 {[%clk 0:00:00]}  Rh1+ {[%clk 0:00:34]} 0-1

[Event "November 21 Early 2023"]
[Site "https://www.chess.com"]
[Date "2023.11.21"]
[Round "2"]
[White "Palacio,Igor Da Paz"]
[Black "Nilsen, Tobias Lang"]
[Result "1-0"]
[Board "188"]
[TimeControl "180+1"]
[WhiteFideId "2121140"]
[BlackFideId "1521624"]
[WhiteElo "2126"]
[BlackElo "2221"]
[WhiteTeam "BRA"]
[BlackTeam "NOR"]
[WhiteClock "0:00:12"]
[BlackClock "0:00:09"]

1. e4 {[%clk 0:03:00]}  e5 {[%clk 0:02:59]} 2. Nf3 {[%clk 0:03:00]}  Nc6 {[%clk 0:02:59]} 3. Bb5 {[%clk 0:03:00]}  a6 {[%clk 0:02:59]} 4. Ba4 {[%clk 0:03:00]}  Nf6 {[%clk 0:03:00]} 5. O-O {[%clk 0:02:59]}  d6 {[%clk 0:03:01]} 6. Re1 {[%clk 0:02:57]}  Bd7 {[%clk 0:03:01]} 7. c3 {[%clk 0:02:57]}  Be7 {[%clk 0:03:01]} 8. d4 {[%clk 0:02:54]}  O-O {[%clk 0:02:59]} 9. Nbd2 {[%clk 0:02:52]}  b5 {[%clk 0:02:58]} 10. Bb3 {[%clk 0:02:46]}  h6 {[%clk 0:02:58]} 11. Nf1 {[%clk 0:02:43]}  Re8 {[%clk 0:02:57]} 12. h3 {[%clk 0:02:36]}  Bf8 {[%clk 0:02:57]} 13. Ng3 {[%clk 0:02:30]}  g6 {[%clk 0:02:55]} 14. Nh4 {[%clk 0:02:20]}  Kh7 {[%clk 0:02:47]} 15. Bxf7 {[%clk 0:02:18]}  g5 {[%clk 0:02:44]} 16. Nhf5 {[%clk 0:02:03]}  Re7 {[%clk 0:02:31]} 17. Nxe7 {[%clk 0:02:02]}  Qxe7 {[%clk 0:02:31]} 18. Bd5 {[%clk 0:02:01]}  Re8 {[%clk 0:02:26]} 19. Bxc6 {[%clk 0:01:46]}  Bxc6 {[%clk 0:02:25]} 20. Nf5 {[%clk 0:01:41]}  Qf7 {[%clk 0:02:25]} 21. f3 {[%clk 0:01:30]}  Qg6 {[%clk 0:02:00]} 22. g4 {[%clk 0:01:26]}  d5 {[%clk 0:01:47]} 23. exd5 {[%clk 0:01:19]}  Nxd5 {[%clk 0:01:43]} 24. Rxe5 {[%clk 0:01:13]}  Rxe5 {[%clk 0:01:43]} 25. dxe5 {[%clk 0:01:13]}  Bc5+ {[%clk 0:01:44]} 26. Kg2 {[%clk 0:01:08]}  Bb7 {[%clk 0:01:34]} 27. Qe2 {[%clk 0:01:04]}  Qe6 {[%clk 0:01:27]} 28. Bd2 {[%clk 0:00:58]}  a5 {[%clk 0:01:14]} 29. Re1 {[%clk 0:00:54]}  a4 {[%clk 0:01:14]} 30. Qxb5 {[%clk 0:00:48]}  Bb6 {[%clk 0:01:14]} 31. Qxa4 {[%clk 0:00:42]}  Nf4+ {[%clk 0:00:47]} 32. Bxf4 {[%clk 0:00:39]}  gxf4 {[%clk 0:00:48]} 33. Qxf4 {[%clk 0:00:37]}  Bc5 {[%clk 0:00:38]} 34. b3 {[%clk 0:00:35]}  Bf8 {[%clk 0:00:37]} 35. c4 {[%clk 0:00:28]}  Qa6 {[%clk 0:00:37]} 36. Re2 {[%clk 0:00:27]}  Qe6 {[%clk 0:00:36]} 37. Nd4 {[%clk 0:00:24]}  Qb6 {[%clk 0:00:29]} 38. Qxf8 {[%clk 0:00:20]}  Qxd4 {[%clk 0:00:28]} 39. Qf5+ {[%clk 0:00:17]}  Kg7 {[%clk 0:00:26]} 40. e6 {[%clk 0:00:15]}  Qd1 {[%clk 0:00:19]} 41. Qe5+ {[%clk 0:00:14]}  Kh7 {[%clk 0:00:18]} 42. e7 {[%clk 0:00:14]}  Bxf3+ {[%clk 0:00:12]} 43. Kxf3 {[%clk 0:00:15]}  Qh1+ {[%clk 0:00:13]} 44. Ke3 {[%clk 0:00:14]}  Qg1+ {[%clk 0:00:13]} 45. Kd2 {[%clk 0:00:13]}  Qa1 {[%clk 0:00:09]} 46. Qxa1 {[%clk 0:00:12]} 1-0

[Event "November 21 Early 2023"]
[Site "https://www.chess.com"]
[Date "2023.11.21"]
[Round "2"]
[White "Grochal, Joey"]
[Black "Eggleston, Thomas A"]
[Result "1-0"]
[Board "191"]
[TimeControl "180+1"]
[WhiteFideId "1019945"]
[BlackFideId "412139"]
[WhiteElo "2231"]
[BlackElo "2169"]
[WhiteTeam "NED"]
[BlackTeam "ENG"]
[WhiteClock "0:00:38"]
[BlackClock "0:00:00"]

1. e4 {[%clk 0:03:00]}  e6 {[%clk 0:02:59]} 2. d4 {[%clk 0:02:59]}  d5 {[%clk 0:02:59]} 3. Nc3 {[%clk 0:03:00]}  Nf6 {[%clk 0:02:58]} 4. e5 {[%clk 0:03:00]}  Nfd7 {[%clk 0:02:58]} 5. f4 {[%clk 0:03:01]}  c5 {[%clk 0:02:59]} 6. Nf3 {[%clk 0:03:02]}  Nc6 {[%clk 0:02:59]} 7. Be3 {[%clk 0:03:03]}  a6 {[%clk 0:02:59]} 8. Qd2 {[%clk 0:03:03]}  Qb6 {[%clk 0:02:59]} 9. Na4 {[%clk 0:03:00]}  Qb4 {[%clk 0:03:00]} 10. Qxb4 {[%clk 0:02:46]}  Nxb4 {[%clk 0:03:00]} 11. Kd2 {[%clk 0:02:40]}  b6 {[%clk 0:03:01]} 12. c3 {[%clk 0:02:34]}  Nc6 {[%clk 0:03:01]} 13. b3 {[%clk 0:02:26]}  Bb7 {[%clk 0:02:59]} 14. Be2 {[%clk 0:02:23]}  Be7 {[%clk 0:02:55]} 15. Nb2 {[%clk 0:02:21]}  cxd4 {[%clk 0:02:46]} 16. Nxd4 {[%clk 0:02:16]}  Nc5 {[%clk 0:02:43]} 17. Bf3 {[%clk 0:02:12]}  Nxd4 {[%clk 0:02:37]} 18. Bxd4 {[%clk 0:02:12]}  b5 {[%clk 0:02:21]} 19. Rac1 {[%clk 0:02:04]}  Ne4+ {[%clk 0:02:21]} 20. Bxe4 {[%clk 0:02:04]}  dxe4 {[%clk 0:02:22]} 21. Ke3 {[%clk 0:02:04]}  g5 {[%clk 0:02:18]} 22. g3 {[%clk 0:01:58]}  Rg8 {[%clk 0:02:04]} 23. Rhf1 {[%clk 0:01:45]}  Rc8 {[%clk 0:01:43]} 24. f5 {[%clk 0:01:43]}  exf5 {[%clk 0:01:40]} 25. Rxf5 {[%clk 0:01:43]}  g4 {[%clk 0:01:41]} 26. Rcf1 {[%clk 0:01:39]}  Bg5+ {[%clk 0:01:39]} 27. Ke2 {[%clk 0:01:38]}  Bd5 {[%clk 0:01:36]} 28. Nd1 {[%clk 0:01:15]}  Rg6 {[%clk 0:01:07]} 29. Ne3 {[%clk 0:01:14]}  Be6 {[%clk 0:00:59]} 30. R5f2 {[%clk 0:01:05]}  h5 {[%clk 0:00:59]} 31. Nf5 {[%clk 0:00:56]}  Kd7 {[%clk 0:00:58]} 32. Nd6 {[%clk 0:00:53]}  Rf8 {[%clk 0:00:54]} 33. Nxf7 {[%clk 0:00:51]}  h4 {[%clk 0:00:31]} 34. Nxg5 {[%clk 0:00:44]}  Rxf2+ {[%clk 0:00:30]} 35. Rxf2 {[%clk 0:00:43]}  hxg3 {[%clk 0:00:27]} 36. hxg3 {[%clk 0:00:42]}  Rxg5 {[%clk 0:00:27]} 37. Ke3 {[%clk 0:00:41]}  Bd5 {[%clk 0:00:24]} 38. Rf6 {[%clk 0:00:41]}  Rh5 {[%clk 0:00:20]} 39. Rd6+ {[%clk 0:00:41]}  Ke7 {[%clk 0:00:19]} 40. Rxd5 {[%clk 0:00:42]}  Rh3 {[%clk 0:00:19]} 41. Kf4 {[%clk 0:00:41]}  Rh2 {[%clk 0:00:19]} 42. Kxg4 {[%clk 0:00:41]}  Rxa2 {[%clk 0:00:16]} 43. Kf4 {[%clk 0:00:40]}  Rb2 {[%clk 0:00:15]} 44. b4 {[%clk 0:00:39]}  Re2 {[%clk 0:00:14]} 45. Rd6 {[%clk 0:00:38]}  Re1 {[%clk 0:00:14]} 46. Rxa6 {[%clk 0:00:37]}  Re2 {[%clk 0:00:09]} 47. Rb6 {[%clk 0:00:37]}  e3 {[%clk 0:00:09]} 48. Bxe3 {[%clk 0:00:37]}  Rc2 {[%clk 0:00:08]} 49. Bd4 {[%clk 0:00:37]}  Rb2 {[%clk 0:00:08]} 50. Ke4 {[%clk 0:00:37]}  Rc2 {[%clk 0:00:08]} 51. Kd5 {[%clk 0:00:38]}  Rg2 {[%clk 0:00:08]} 52. Rb7+ {[%clk 0:00:38]}  Ke8 {[%clk 0:00:08]} 53. Kd6 {[%clk 0:00:38]}  Kf8 {[%clk 0:00:08]} 54. e6 {[%clk 0:00:39]}  Kg8 {[%clk 0:00:06]} 55. Rb8+ {[%clk 0:00:39]}  Kh7 {[%clk 0:00:00]} 56. e7 {[%clk 0:00:38]} 1-0

[Event "November 21 Early 2023"]
[Site "https://www.chess.com"]
[Date "2023.11.21"]
[Round "2"]
[White "Toktomushev, Teimur"]
[Black "alfianasybullina"]
[Result "1-0"]
[Board "193"]
[TimeControl "180+1"]
[WhiteFideId "14176726"]
[WhiteElo "2198"]
[BlackElo "2304"]
[WhiteTeam "UKR"]
[WhiteClock "0:00:04"]
[BlackClock "0:00:05"]

1. d4 {[%clk 0:03:00]}  Nf6 {[%clk 0:02:59]} 2. c4 {[%clk 0:02:59]}  c5 {[%clk 0:02:59]} 3. d5 {[%clk 0:02:59]}  e6 {[%clk 0:03:00]} 4. Nc3 {[%clk 0:02:59]}  exd5 {[%clk 0:03:01]} 5. cxd5 {[%clk 0:03:00]}  d6 {[%clk 0:03:01]} 6. Nf3 {[%clk 0:03:01]}  g6 {[%clk 0:03:02]} 7. Nd2 {[%clk 0:03:01]}  Bg7 {[%clk 0:03:00]} 8. e4 {[%clk 0:03:02]}  O-O {[%clk 0:03:00]} 9. Be2 {[%clk 0:03:00]}  b6 {[%clk 0:02:56]} 10. O-O {[%clk 0:02:59]}  Ba6 {[%clk 0:02:57]} 11. Re1 {[%clk 0:02:45]}  Qe7 {[%clk 0:02:20]} 12. a4 {[%clk 0:02:11]}  Re8 {[%clk 0:02:13]} 13. Nb5 {[%clk 0:01:53]}  Nxe4 {[%clk 0:01:43]} 14. Bf3 {[%clk 0:00:50]}  f5 {[%clk 0:01:14]} 15. Nxe4 {[%clk 0:00:49]}  fxe4 {[%clk 0:01:15]} 16. Rxe4 {[%clk 0:00:49]}  Be5 {[%clk 0:01:06]} 17. Bf4 {[%clk 0:00:24]}  Bxb5 {[%clk 0:01:04]} 18. Bxe5 {[%clk 0:00:23]}  Qf8 {[%clk 0:00:36]} 19. axb5 {[%clk 0:00:15]}  dxe5 {[%clk 0:00:36]} 20. d6 {[%clk 0:00:13]}  Nd7 {[%clk 0:00:36]} 21. Qd5+ {[%clk 0:00:08]}  Qf7 {[%clk 0:00:33]} 22. Ree1 {[%clk 0:00:04]}  Rad8 {[%clk 0:00:21]} 23. Rxa7 {[%clk 0:00:02]}  Qxd5 {[%clk 0:00:15]} 24. Bxd5+ {[%clk 0:00:03]}  Kf8 {[%clk 0:00:15]} 25. Bc6 {[%clk 0:00:04]}  Nf6 {[%clk 0:00:13]} 26. Bxe8 {[%clk 0:00:05]}  Nxe8 {[%clk 0:00:11]} 27. Rxe5 {[%clk 0:00:05]}  Nxd6 {[%clk 0:00:10]} 28. Rxh7 {[%clk 0:00:04]}  Nxb5 {[%clk 0:00:10]} 29. h4 {[%clk 0:00:03]}  Rd1+ {[%clk 0:00:05]} 30. Kh2 {[%clk 0:00:04]}  Rd6 {[%clk 0:00:05]} 31. Ree7 {[%clk 0:00:04]}  Nd4 {[%clk 0:00:05]} 32. Ref7+ {[%clk 0:00:03]}  Ke8 {[%clk 0:00:05]} 33. Ra7 {[%clk 0:00:02]}  Ne6 {[%clk 0:00:05]} 34. Rh8+ {[%clk 0:00:02]}  Nf8 {[%clk 0:00:04]} 35. Ra8+ {[%clk 0:00:03]}  Rd8 {[%clk 0:00:05]} 36. Rxd8+ {[%clk 0:00:03]}  Kxd8 {[%clk 0:00:06]} 37. Rxf8+ {[%clk 0:00:03]}  Ke7 {[%clk 0:00:06]} 38. Rg8 {[%clk 0:00:04]}  Kf7 {[%clk 0:00:05]} 39. Rb8 {[%clk 0:00:04]} 1-0